[Event "Late-Titled-Tuesday-Blitz-June-04-2024"]
[Site "Chess.com"]
[Date "2024.06.04"]
[Round "11"]
[White "rionelG"]
[Black "Der_Honigdachs"]
[Result "1-0"]
[WhiteElo "2329"]
[BlackElo "2496"]
[TimeControl "180+1"]
[EndTime "16:04:47 PDT"]
[Termination "rionelG won by resignation"]

1. e4 {[%clk 0:03:00.9]} 1... d5 {[%clk 0:02:57.8]} 2. exd5 {[%clk 0:02:58.7]}
2... Qxd5 {[%clk 0:02:58.7]} 3. Nc3 {[%clk 0:02:58.4]} 3... Qd6 {[%clk
0:02:59.3]} 4. g3 {[%clk 0:02:57.3]} 4... Nf6 {[%clk 0:02:59.5]} 5. Bg2 {[%clk
0:02:57.7]} 5... c6 {[%clk 0:03:00]} 6. d4 {[%clk 0:02:54.7]} 6... Bf5 {[%clk
0:03:00.2]} 7. Bf4 {[%clk 0:02:51.4]} 7... Qb4 {[%clk 0:02:58.6]} 8. Rb1 {[%clk
0:02:20.7]} 8... e6 {[%clk 0:02:58.2]} 9. Ne2 {[%clk 0:02:19]} 9... h6 {[%clk
0:02:58.6]} 10. O-O {[%clk 0:02:18.6]} 10... Nbd7 {[%clk 0:02:58.3]} 11. a3
{[%clk 0:02:17.7]} 11... Qa5 {[%clk 0:02:58.5]} 12. Re1 {[%clk 0:02:12.2]} 12...
Be7 {[%clk 0:02:58.7]} 13. Qc1 {[%clk 0:01:57.8]} 13... O-O {[%clk 0:02:57.3]}
14. b4 {[%clk 0:01:57.6]} 14... Qd8 {[%clk 0:02:55.3]} 15. Na4 {[%clk
0:01:35.3]} 15... a5 {[%clk 0:02:49.8]} 16. Nc5 {[%clk 0:01:28.8]} 16... axb4
{[%clk 0:02:44.2]} 17. Nxb7 {[%clk 0:01:21.2]} 17... Qb6 {[%clk 0:02:37.1]} 18.
Nd6 {[%clk 0:01:18.1]} 18... Rxa3 {[%clk 0:02:31.8]} 19. Nc4 {[%clk 0:01:17.4]}
19... Qa6 {[%clk 0:02:28.6]} 20. Nxa3 {[%clk 0:01:16.2]} 20... bxa3 {[%clk
0:02:29.5]} 21. Ra1 {[%clk 0:01:02.4]} 21... Nd5 {[%clk 0:02:27.1]} 22. c4
{[%clk 0:00:59.3]} 22... N5b6 {[%clk 0:02:07.2]} 23. c5 {[%clk 0:00:41]} 23...
Nd5 {[%clk 0:02:06]} 24. Qxa3 {[%clk 0:00:35.6]} 24... Qc4 {[%clk 0:01:58.2]}
25. Rac1 {[%clk 0:00:31.1]} 25... Qb5 {[%clk 0:01:57.5]} 26. Ra1 {[%clk
0:00:22.8]} 26... g5 {[%clk 0:01:52.3]} 27. Be3 {[%clk 0:00:16.4]} 27... Bf6
{[%clk 0:01:49.8]} 28. Nc3 {[%clk 0:00:10.6]} 28... Nxc3 {[%clk 0:01:36.7]} 29.
Qxc3 {[%clk 0:00:11.5]} 29... Rb8 {[%clk 0:01:32.6]} 30. Ra5 {[%clk 0:00:11.3]}
30... Qb7 {[%clk 0:01:29.1]} 31. Rea1 {[%clk 0:00:10.6]} 31... e5 {[%clk
0:01:21.7]} 32. Ra7 {[%clk 0:00:10.6]} 32... Qb1+ {[%clk 0:01:16.7]} 33. Rxb1
{[%clk 0:00:09.3]} 33... Rxb1+ {[%clk 0:01:17.6]} 34. Bf1 {[%clk 0:00:09.5]}
34... Bh3 {[%clk 0:01:17]} 35. Bc1 {[%clk 0:00:08.2]} 35... exd4 {[%clk
0:01:17.4]} 36. Qc2 {[%clk 0:00:08.2]} 36... Bf5 {[%clk 0:01:11]} 37. Qxf5
{[%clk 0:00:06.9]} 37... Rxc1 {[%clk 0:01:11.7]} 38. Qxd7 {[%clk 0:00:06.4]}
38... Rxf1+ {[%clk 0:01:12.6]} 39. Kxf1 {[%clk 0:00:06]} 1-0

[Event "Late-Titled-Tuesday-Blitz-June-04-2024"]
[Site "Chess.com"]
[Date "2024.06.04"]
[Round "11"]
[White "lluiss"]
[Black "Onthequiet"]
[Result "0-1"]
[WhiteElo "2206"]
[BlackElo "2385"]
[TimeControl "180+1"]
[EndTime "16:04:51 PDT"]
[Termination "Onthequiet won on time"]

1. Nf3 {[%clk 0:03:00.9]} 1... d5 {[%clk 0:03:00]} 2. d4 {[%clk 0:02:59.8]} 2...
Nf6 {[%clk 0:03:00.4]} 3. c4 {[%clk 0:02:59.1]} 3... e6 {[%clk 0:03:00.3]} 4.
cxd5 {[%clk 0:02:59]} 4... exd5 {[%clk 0:03:00.3]} 5. Nc3 {[%clk 0:02:59.3]}
5... c6 {[%clk 0:03:00.4]} 6. Qc2 {[%clk 0:02:58.7]} 6... Be7 {[%clk 0:03:00.1]}
7. Bg5 {[%clk 0:02:58.1]} 7... Nbd7 {[%clk 0:03:00.5]} 8. e3 {[%clk 0:02:57.9]}
8... Nh5 {[%clk 0:03:00.1]} 9. Bxe7 {[%clk 0:02:51.8]} 9... Qxe7 {[%clk
0:03:00]} 10. Be2 {[%clk 0:02:48.8]} 10... Nb6 {[%clk 0:02:59.1]} 11. O-O {[%clk
0:02:39.6]} 11... g6 {[%clk 0:02:54.1]} 12. Ne5 {[%clk 0:02:22.3]} 12... Ng7
{[%clk 0:02:52.2]} 13. Bd3 {[%clk 0:02:00]} 13... O-O {[%clk 0:02:44.9]} 14.
Rae1 {[%clk 0:01:44.1]} 14... Bf5 {[%clk 0:02:36.3]} 15. f3 {[%clk 0:01:39]}
15... Bxd3 {[%clk 0:02:34.6]} 16. Nxd3 {[%clk 0:01:39]} 16... Nf5 {[%clk
0:02:29.2]} 17. Nd1 {[%clk 0:01:30.7]} 17... Rfe8 {[%clk 0:02:21.6]} 18. Re2
{[%clk 0:01:27.2]} 18... Nxd4 {[%clk 0:02:11.4]} 19. exd4 {[%clk 0:01:26.5]}
19... Qxe2 {[%clk 0:02:10.5]} 20. Rf2 {[%clk 0:01:24.9]} 20... Qxc2 {[%clk
0:02:09]} 21. Rxc2 {[%clk 0:01:25.8]} 21... Nc4 {[%clk 0:02:05.9]} 22. Kf2
{[%clk 0:01:19.9]} 22... Nd6 {[%clk 0:02:02.1]} 23. Nc5 {[%clk 0:01:15.9]} 23...
Re7 {[%clk 0:02:01.6]} 24. Nc3 {[%clk 0:01:03.7]} 24... Rae8 {[%clk 0:02:01.1]}
25. b3 {[%clk 0:01:03]} 25... a6 {[%clk 0:02:00.1]} 26. a4 {[%clk 0:01:00.7]}
26... a5 {[%clk 0:01:57.9]} 27. Rd2 {[%clk 0:00:51.7]} 27... f5 {[%clk
0:01:52.9]} 28. Nd3 {[%clk 0:00:47.3]} 28... Nf7 {[%clk 0:01:46.6]} 29. f4
{[%clk 0:00:43.3]} 29... Nd6 {[%clk 0:01:44.6]} 30. Ne5 {[%clk 0:00:40.5]} 30...
Ne4+ {[%clk 0:01:44.1]} 31. Nxe4 {[%clk 0:00:40.2]} 31... dxe4 {[%clk
0:01:42.5]} 32. Rc2 {[%clk 0:00:37.3]} 32... Rd8 {[%clk 0:01:42.2]} 33. Ke3
{[%clk 0:00:37]} 33... Rd5 {[%clk 0:01:41.9]} 34. Nc4 {[%clk 0:00:21.8]} 34...
c5 {[%clk 0:01:36]} 35. dxc5 {[%clk 0:00:14.9]} 35... Rxc5 {[%clk 0:01:35.7]}
36. Rd2 {[%clk 0:00:15.1]} 36... b5 {[%clk 0:01:32]} 37. Rd8+ {[%clk 0:00:10.8]}
37... Kg7 {[%clk 0:01:31.8]} 38. axb5 {[%clk 0:00:04.3]} 38... Rxb5 {[%clk
0:01:31.6]} 39. Nd2 {[%clk 0:00:03.7]} 39... Rc7 {[%clk 0:01:20.8]} 0-1

[Event "Late-Titled-Tuesday-Blitz-June-04-2024"]
[Site "Chess.com"]
[Date "2024.06.04"]
[Round "11"]
[White "meme0105"]
[Black "Darkbluelord"]
[Result "1-0"]
[WhiteElo "1984"]
[BlackElo "2114"]
[TimeControl "180+1"]
[EndTime "16:04:51 PDT"]
[Termination "meme0105 won by resignation"]

1. e4 {[%clk 0:03:00.9]} 1... c5 {[%clk 0:02:59.7]} 2. b4 {[%clk 0:03:00.9]}
2... cxb4 {[%clk 0:02:59.3]} 3. a3 {[%clk 0:03:00.5]} 3... d5 {[%clk 0:02:58.9]}
4. exd5 {[%clk 0:02:56.3]} 4... Qxd5 {[%clk 0:02:58.5]} 5. Nf3 {[%clk
0:02:55.7]} 5... e5 {[%clk 0:02:52]} 6. Bb2 {[%clk 0:02:49.1]} 6... Nf6 {[%clk
0:02:41.7]} 7. Qe2 {[%clk 0:02:37.9]} 7... Nc6 {[%clk 0:02:37.5]} 8. Nxe5 {[%clk
0:02:36.6]} 8... Be6 {[%clk 0:02:29.7]} 9. axb4 {[%clk 0:02:28.5]} 9... Bxb4
{[%clk 0:02:24.1]} 10. c4 {[%clk 0:02:28.4]} 10... Qd6 {[%clk 0:02:07.5]} 11.
Nxc6 {[%clk 0:02:19.3]} 11... Qxc6 {[%clk 0:02:03.6]} 12. Bc3 {[%clk 0:02:12.6]}
12... Be7 {[%clk 0:01:54.2]} 13. Na3 {[%clk 0:02:07.9]} 13... O-O {[%clk
0:01:54]} 14. Nb5 {[%clk 0:02:07.7]} 14... Ne4 {[%clk 0:01:36.7]} 15. Bb2 {[%clk
0:01:43.1]} 15... Bc5 {[%clk 0:01:15.5]} 16. d4 {[%clk 0:01:37.2]} 16... Bb4+
{[%clk 0:01:14.5]} 17. Kd1 {[%clk 0:01:32.8]} 17... a6 {[%clk 0:01:10.9]} 18. d5
{[%clk 0:01:31.7]} 18... Qd7 {[%clk 0:00:58.3]} 19. Qxe4 {[%clk 0:01:05.3]}
19... Bf5 {[%clk 0:00:57.4]} 20. Qd4 {[%clk 0:01:01.4]} 20... f6 {[%clk
0:00:51]} 21. Nc3 {[%clk 0:00:55.7]} 21... Rac8 {[%clk 0:00:43.4]} 22. Ba3
{[%clk 0:00:41.3]} 22... Bxc3 {[%clk 0:00:31.1]} 23. Qxc3 {[%clk 0:00:41.4]}
23... Qa4+ {[%clk 0:00:30.9]} 24. Kd2 {[%clk 0:00:39.9]} 24... Rfd8 {[%clk
0:00:20.5]} 25. Be7 {[%clk 0:00:30]} 25... Rxd5+ {[%clk 0:00:19.6]} 26. cxd5
{[%clk 0:00:30.5]} 26... Rxc3 {[%clk 0:00:19.6]} 27. Rxa4 {[%clk 0:00:30.6]}
27... Rc2+ {[%clk 0:00:19.8]} 28. Ke3 {[%clk 0:00:30.1]} 28... Kf7 {[%clk
0:00:20]} 1-0

[Event "Late-Titled-Tuesday-Blitz-June-04-2024"]
[Site "Chess.com"]
[Date "2024.06.04"]
[Round "11"]
[White "JSPrepz"]
[Black "zverr1"]
[Result "1-0"]
[WhiteElo "2850"]
[BlackElo "2633"]
[TimeControl "180+1"]
[EndTime "16:04:56 PDT"]
[Termination "JSPrepz won on time"]

1. e4 {[%clk 0:03:00.9]} 1... c6 {[%clk 0:02:50.1]} 2. d4 {[%clk 0:03:00.7]}
2... d5 {[%clk 0:02:50.4]} 3. Nd2 {[%clk 0:03:00.9]} 3... dxe4 {[%clk
0:02:50.2]} 4. Nxe4 {[%clk 0:03:01.8]} 4... Nf6 {[%clk 0:02:51.1]} 5. Nxf6+
{[%clk 0:03:01.8]} 5... exf6 {[%clk 0:02:52]} 6. Bd3 {[%clk 0:02:57.9]} 6...
Qxd4 {[%clk 0:02:42.5]} 7. Nf3 {[%clk 0:02:58.1]} 7... Qd8 {[%clk 0:02:38.5]} 8.
O-O {[%clk 0:02:58]} 8... Be7 {[%clk 0:02:31.1]} 9. Re1 {[%clk 0:02:49.3]} 9...
O-O {[%clk 0:02:26.8]} 10. Bf4 {[%clk 0:02:46.2]} 10... g6 {[%clk 0:01:50]} 11.
Bc4 {[%clk 0:01:45.9]} 11... Qxd1 {[%clk 0:00:52.9]} 12. Raxd1 {[%clk
0:01:46.8]} 12... Bc5 {[%clk 0:00:52.4]} 13. Bh6 {[%clk 0:01:38.2]} 13... Bd7
{[%clk 0:00:42.8]} 14. Bxf8 {[%clk 0:01:12.4]} 14... Kxf8 {[%clk 0:00:43.7]} 15.
c3 {[%clk 0:01:07]} 15... a5 {[%clk 0:00:43.1]} 16. a4 {[%clk 0:01:03.9]} 16...
b5 {[%clk 0:00:26.3]} 17. axb5 {[%clk 0:00:59.4]} 17... cxb5 {[%clk 0:00:26.4]}
18. Rd5 {[%clk 0:00:37.3]} 18... Bxf2+ {[%clk 0:00:15.4]} 19. Kxf2 {[%clk
0:00:38.2]} 19... bxc4 {[%clk 0:00:16.2]} 20. Ra1 {[%clk 0:00:38.8]} 20... Ra7
{[%clk 0:00:11.3]} 21. Raxa5 {[%clk 0:00:38.6]} 21... Rb7 {[%clk 0:00:11.7]} 22.
Ra8 {[%clk 0:00:39.3]} 22... Ke7 {[%clk 0:00:10.5]} 23. Rd2 {[%clk 0:00:38]}
23... Be6 {[%clk 0:00:09.4]} 24. Nd4 {[%clk 0:00:37.1]} 24... f5 {[%clk
0:00:07.4]} 25. Rxb8 {[%clk 0:00:37.3]} 1-0

[Event "Late-Titled-Tuesday-Blitz-June-04-2024"]
[Site "Chess.com"]
[Date "2024.06.04"]
[Round "11"]
[White "janhelmer03"]
[Black "malti"]
[Result "1-0"]
[WhiteElo "2368"]
[BlackElo "2132"]
[TimeControl "180+1"]
[EndTime "16:05:00 PDT"]
[Termination "janhelmer03 won by checkmate"]

1. Nf3 {[%clk 0:03:00.9]} 1... g6 {[%clk 0:02:59.8]} 2. c4 {[%clk 0:02:50.8]}
2... Bg7 {[%clk 0:02:59.8]} 3. Nc3 {[%clk 0:02:49.8]} 3... f5 {[%clk 0:03:00.3]}
4. e4 {[%clk 0:02:47.3]} 4... fxe4 {[%clk 0:03:01.2]} 5. Nxe4 {[%clk 0:02:46.4]}
5... Nf6 {[%clk 0:03:02.1]} 6. Ng3 {[%clk 0:02:42]} 6... O-O {[%clk 0:03:01.8]}
7. d4 {[%clk 0:02:41.4]} 7... d6 {[%clk 0:03:02.2]} 8. Be3 {[%clk 0:02:40.8]}
8... Nc6 {[%clk 0:03:02.5]} 9. Bd3 {[%clk 0:02:39.1]} 9... Ng4 {[%clk
0:03:02.2]} 10. O-O {[%clk 0:02:32.2]} 10... e5 {[%clk 0:02:58.2]} 11. d5 {[%clk
0:02:29.6]} 11... Nxe3 {[%clk 0:02:47.3]} 12. fxe3 {[%clk 0:02:28.7]} 12... Ne7
{[%clk 0:02:47.5]} 13. Ng5 {[%clk 0:02:25.2]} 13... h6 {[%clk 0:02:44.3]} 14.
Rxf8+ {[%clk 0:02:09.7]} 14... Qxf8 {[%clk 0:02:45.2]} 15. N5e4 {[%clk
0:02:07.7]} 15... Nf5 {[%clk 0:02:44]} 16. Qe2 {[%clk 0:02:05.1]} 16... Qe7
{[%clk 0:02:31.8]} 17. Rf1 {[%clk 0:01:44.8]} 17... Bd7 {[%clk 0:02:28.9]} 18.
Nxf5 {[%clk 0:00:40.6]} 18... gxf5 {[%clk 0:02:29.8]} 19. Ng3 {[%clk 0:00:40]}
19... e4 {[%clk 0:02:26.9]} 20. Bb1 {[%clk 0:00:39.8]} 20... Qg5 {[%clk
0:02:16.2]} 21. Qf2 {[%clk 0:00:31.3]} 21... Rf8 {[%clk 0:02:11.1]} 22. b3
{[%clk 0:00:26.9]} 22... Be5 {[%clk 0:02:04.8]} 23. Nxe4 {[%clk 0:00:18.1]}
23... Qg7 {[%clk 0:01:23.4]} 24. Ng3 {[%clk 0:00:16.4]} 24... f4 {[%clk
0:01:23.1]} 25. Nh5 {[%clk 0:00:10]} 25... fxe3 {[%clk 0:01:19.7]} 26. Qxf8+
{[%clk 0:00:07.1]} 26... Qxf8 {[%clk 0:01:18.4]} 27. Bh7+ {[%clk 0:00:03]} 27...
Kh8 {[%clk 0:01:18.4]} 28. Rxf8+ {[%clk 0:00:03]} 28... Kxh7 {[%clk 0:01:18.9]}
29. Rf7+ {[%clk 0:00:02.9]} 29... Kg6 {[%clk 0:01:18.3]} 30. Rxd7 {[%clk
0:00:03.2]} 30... Kxh5 {[%clk 0:01:14.5]} 31. Kf1 {[%clk 0:00:03.7]} 31... Bxh2
{[%clk 0:01:13.2]} 32. Ke2 {[%clk 0:00:04.6]} 32... Bf4 {[%clk 0:01:11.9]} 33.
Rxc7 {[%clk 0:00:04.9]} 33... Kg4 {[%clk 0:01:12.3]} 34. Rxb7 {[%clk 0:00:05.4]}
34... Kg3 {[%clk 0:01:12.6]} 35. Rg7+ {[%clk 0:00:05.4]} 35... Bg5 {[%clk
0:01:13.1]} 36. Rxg5+ {[%clk 0:00:04.5]} 36... hxg5 {[%clk 0:01:13]} 37. c5
{[%clk 0:00:05.4]} 37... Kxg2 {[%clk 0:01:05.9]} 38. cxd6 {[%clk 0:00:04.8]}
38... g4 {[%clk 0:01:06.8]} 39. d7 {[%clk 0:00:05.2]} 39... g3 {[%clk
0:01:07.7]} 40. d8=Q {[%clk 0:00:05.9]} 40... Kg1 {[%clk 0:01:08.3]} 41. Qg5
{[%clk 0:00:06.1]} 41... g2 {[%clk 0:01:08.9]} 42. Kf3 {[%clk 0:00:06.4]} 42...
Kf1 {[%clk 0:01:06.6]} 43. Qxg2+ {[%clk 0:00:06.9]} 43... Ke1 {[%clk 0:01:07.5]}
44. Qe2# {[%clk 0:00:07.7]} 1-0

[Event "Late-Titled-Tuesday-Blitz-June-04-2024"]
[Site "Chess.com"]
[Date "2024.06.04"]
[Round "11"]
[White "Smoking_Crow"]
[Black "Stanbad1"]
[Result "1-0"]
[WhiteElo "2577"]
[BlackElo "2659"]
[TimeControl "180+1"]
[EndTime "16:05:14 PDT"]
[Termination "Smoking_Crow won by resignation"]

1. e4 {[%clk 0:02:54.8]} 1... e6 {[%clk 0:02:59.8]} 2. d4 {[%clk 0:02:52]} 2...
d5 {[%clk 0:03:00.1]} 3. Nd2 {[%clk 0:02:52.9]} 3... Nf6 {[%clk 0:02:59.4]} 4.
e5 {[%clk 0:02:53.2]} 4... Nfd7 {[%clk 0:03:00.1]} 5. Bd3 {[%clk 0:02:53.9]}
5... c5 {[%clk 0:03:00.7]} 6. c3 {[%clk 0:02:54.8]} 6... Nc6 {[%clk 0:03:01]} 7.
Ne2 {[%clk 0:02:55.5]} 7... cxd4 {[%clk 0:03:01.6]} 8. cxd4 {[%clk 0:02:56.4]}
8... f6 {[%clk 0:03:02.3]} 9. exf6 {[%clk 0:02:57.3]} 9... Nxf6 {[%clk
0:03:02.7]} 10. Nf3 {[%clk 0:02:58.2]} 10... Bd6 {[%clk 0:03:03.3]} 11. O-O
{[%clk 0:02:59.1]} 11... O-O {[%clk 0:03:03.9]} 12. Bg5 {[%clk 0:02:59.6]} 12...
Qb6 {[%clk 0:03:03]} 13. Nc3 {[%clk 0:02:55.9]} 13... Bd7 {[%clk 0:03:01.2]} 14.
a3 {[%clk 0:02:56]} 14... Be8 {[%clk 0:02:59.4]} 15. Re1 {[%clk 0:02:56.4]}
15... Bh5 {[%clk 0:02:56.8]} 16. Rxe6 {[%clk 0:02:55.8]} 16... Nxd4 {[%clk
0:02:45.2]} 17. Bxf6 {[%clk 0:02:39.1]} 17... Nxf3+ {[%clk 0:02:41.5]} 18. gxf3
{[%clk 0:02:39]} 18... Bxh2+ {[%clk 0:02:42.1]} 19. Kxh2 {[%clk 0:02:35.5]}
19... Qxe6 {[%clk 0:02:42.6]} 20. Nxd5 {[%clk 0:02:10.1]} 20... Rxf6 {[%clk
0:02:40.6]} 21. Nxf6+ {[%clk 0:02:04.7]} 21... Qxf6 {[%clk 0:02:39.5]} 22. Be4
{[%clk 0:02:04.5]} 22... Re8 {[%clk 0:02:28]} 23. Qd5+ {[%clk 0:01:58.3]} 23...
Bf7 {[%clk 0:02:26.5]} 24. Qxb7 {[%clk 0:01:58.3]} 24... h5 {[%clk 0:02:25.2]}
25. Rg1 {[%clk 0:01:49.4]} 25... Qe5+ {[%clk 0:02:18.5]} 26. Kh1 {[%clk
0:01:45.4]} 26... Rb8 {[%clk 0:02:15.4]} 27. Qd7 {[%clk 0:01:26.3]} 27... Qxb2
{[%clk 0:02:11.3]} 28. Qxa7 {[%clk 0:01:20]} 28... Qe5 {[%clk 0:02:07.1]} 29.
Qe3 {[%clk 0:01:17.1]} 29... Re8 {[%clk 0:02:04.6]} 30. Rg5 {[%clk 0:01:10.9]}
30... Qf6 {[%clk 0:02:01.8]} 31. a4 {[%clk 0:01:07]} 31... Qa1+ {[%clk
0:01:56.5]} 32. Kh2 {[%clk 0:00:59.7]} 32... Qxa4 {[%clk 0:01:56.9]} 33. Qc3
{[%clk 0:00:59.2]} 33... g6 {[%clk 0:01:51.3]} 34. Qf6 {[%clk 0:00:48.7]} 34...
Rxe4 {[%clk 0:00:30.2]} 35. Rxg6+ {[%clk 0:00:42.1]} 35... Kf8 {[%clk
0:00:30.5]} 36. fxe4 {[%clk 0:00:34.3]} 36... Qxe4 {[%clk 0:00:29]} 37. Rh6
{[%clk 0:00:34.1]} 37... Ke8 {[%clk 0:00:20]} 38. Rh8+ {[%clk 0:00:33.7]} 1-0

[Event "Late-Titled-Tuesday-Blitz-June-04-2024"]
[Site "Chess.com"]
[Date "2024.06.04"]
[Round "11"]
[White "Timurist"]
[Black "RantomOpening"]
[Result "0-1"]
[WhiteElo "2337"]
[BlackElo "2540"]
[TimeControl "180+1"]
[EndTime "16:05:26 PDT"]
[Termination "RantomOpening won on time"]

1. e4 {[%clk 0:03:00.9]} 1... g6 {[%clk 0:02:57.8]} 2. h4 {[%clk 0:02:58.5]}
2... h6 {[%clk 0:02:56.5]} 3. d4 {[%clk 0:02:56.5]} 3... c5 {[%clk 0:02:55]} 4.
Be3 {[%clk 0:02:55.7]} 4... Bg7 {[%clk 0:02:51.5]} 5. Nc3 {[%clk 0:02:48.7]}
5... Qa5 {[%clk 0:02:46.4]} 6. Qd2 {[%clk 0:02:38.2]} 6... Nc6 {[%clk
0:02:44.4]} 7. Nge2 {[%clk 0:02:17.3]} 7... cxd4 {[%clk 0:02:40.1]} 8. Nxd4
{[%clk 0:02:15.7]} 8... Nf6 {[%clk 0:02:40.2]} 9. f3 {[%clk 0:02:10.1]} 9... d6
{[%clk 0:02:38.4]} 10. Bc4 {[%clk 0:01:48.7]} 10... Bd7 {[%clk 0:02:28.4]} 11.
O-O {[%clk 0:01:38.8]} 11... Rc8 {[%clk 0:02:20.8]} 12. Bb3 {[%clk 0:01:36.9]}
12... Qh5 {[%clk 0:02:20.6]} 13. Qf2 {[%clk 0:01:28.1]} 13... g5 {[%clk
0:02:20.1]} 14. g4 {[%clk 0:01:22.4]} 14... Bxg4 {[%clk 0:02:19.6]} 15. Nxc6
{[%clk 0:01:12.7]} 15... bxc6 {[%clk 0:02:18.5]} 16. fxg4 {[%clk 0:01:09]} 16...
Qxg4+ {[%clk 0:02:19.4]} 17. Kh1 {[%clk 0:01:04.4]} 17... Qh3+ {[%clk
0:02:17.5]} 18. Kg1 {[%clk 0:01:02.1]} 18... gxh4 {[%clk 0:02:15.1]} 19. Qf3
{[%clk 0:00:48.1]} 19... Qd7 {[%clk 0:02:09.3]} 20. e5 {[%clk 0:00:29.8]} 20...
dxe5 {[%clk 0:02:01.7]} 21. Ne4 {[%clk 0:00:26.2]} 21... Rg8 {[%clk 0:02:00.3]}
22. Kh1 {[%clk 0:00:23.2]} 22... Rf8 {[%clk 0:00:54.3]} 23. Rad1 {[%clk
0:00:22.6]} 23... Qc7 {[%clk 0:00:51]} 24. Bc5 {[%clk 0:00:16.7]} 24... Nd5
{[%clk 0:00:45.3]} 25. Bxd5 {[%clk 0:00:12.6]} 25... cxd5 {[%clk 0:00:46.2]} 26.
Rxd5 {[%clk 0:00:13.2]} 26... Qc6 {[%clk 0:00:46.6]} 27. Rfd1 {[%clk 0:00:12.9]}
27... f5 {[%clk 0:00:25.2]} 28. Qh5+ {[%clk 0:00:07.7]} 28... Rf7 {[%clk
0:00:25]} 29. Nc3 {[%clk 0:00:04.3]} 29... e6 {[%clk 0:00:21.7]} 0-1

[Event "Late-Titled-Tuesday-Blitz-June-04-2024"]
[Site "Chess.com"]
[Date "2024.06.04"]
[Round "11"]
[White "AlphaPerseii"]
[Black "ChempionBg"]
[Result "1-0"]
[WhiteElo "2358"]
[BlackElo "2251"]
[TimeControl "180+1"]
[EndTime "16:05:27 PDT"]
[Termination "AlphaPerseii won on time"]

1. Nf3 {[%clk 0:03:00.9]} 1... Nf6 {[%clk 0:02:58.6]} 2. g3 {[%clk 0:03:01.1]}
2... b6 {[%clk 0:02:57.5]} 3. Bg2 {[%clk 0:03:00.7]} 3... Bb7 {[%clk 0:02:57.7]}
4. d3 {[%clk 0:02:56.1]} 4... c5 {[%clk 0:02:53.6]} 5. e4 {[%clk 0:02:55.1]}
5... g6 {[%clk 0:02:53.5]} 6. O-O {[%clk 0:02:53.7]} 6... Bg7 {[%clk 0:02:52.8]}
7. a4 {[%clk 0:02:47.1]} 7... O-O {[%clk 0:02:51.9]} 8. Nbd2 {[%clk 0:02:45]}
8... d5 {[%clk 0:02:44.9]} 9. e5 {[%clk 0:02:44]} 9... Nfd7 {[%clk 0:02:43.4]}
10. Re1 {[%clk 0:02:43.4]} 10... e6 {[%clk 0:02:37.8]} 11. c3 {[%clk 0:02:42.7]}
11... Nc6 {[%clk 0:02:36.1]} 12. d4 {[%clk 0:02:42.4]} 12... cxd4 {[%clk
0:02:31.7]} 13. cxd4 {[%clk 0:02:43.3]} 13... Rc8 {[%clk 0:02:29.7]} 14. Nb1
{[%clk 0:02:41.4]} 14... Nb4 {[%clk 0:02:27]} 15. Nc3 {[%clk 0:02:39.4]} 15...
Ba6 {[%clk 0:02:27]} 16. Bg5 {[%clk 0:02:26.3]} 16... Qe8 {[%clk 0:02:22.6]} 17.
Qd2 {[%clk 0:02:19.2]} 17... f6 {[%clk 0:01:33.7]} 18. exf6 {[%clk 0:02:17.2]}
18... Nxf6 {[%clk 0:01:30.3]} 19. Ne5 {[%clk 0:02:14.1]} 19... Nd7 {[%clk
0:01:02.2]} 20. Ng4 {[%clk 0:01:59.8]} 20... h5 {[%clk 0:00:43.5]} 21. Ne3
{[%clk 0:01:13.3]} 21... Nd3 {[%clk 0:00:39.6]} 22. Rf1 {[%clk 0:01:11.4]} 22...
Bxd4 {[%clk 0:00:37.2]} 23. Nb5 {[%clk 0:01:10.8]} 23... Bxb5 {[%clk 0:00:32.6]}
24. axb5 {[%clk 0:01:11.7]} 24... N7e5 {[%clk 0:00:17.8]} 25. Rxa7 {[%clk
0:01:01.8]} 25... Qxb5 {[%clk 0:00:13]} 26. Bh6 {[%clk 0:00:53.5]} 26... Rf3
{[%clk 0:00:06.6]} 27. Rg7+ {[%clk 0:00:33.9]} 27... Kh8 {[%clk 0:00:05.1]} 28.
Re7 {[%clk 0:00:34.5]} 28... Bc5 {[%clk 0:00:01]} 29. Rxe6 {[%clk 0:00:28.5]}
29... Qd7 {[%clk 0:00:01]} 30. Rxg6 {[%clk 0:00:21.6]} 1-0